bitfinex-derivatives/quotes_BTCF0:USTF0_20250330
["timestamp","ask_amount","ask_price","bid_price","bid_amount"]
[1743364736332,0.75748666,82605.0,82604.0,0.07094]
[1743364736530,0.75748666,82605.0,82604.0,0.0701]
[1743364737144,0.39668666,82605.0,82604.0,0.0701]
[1743364737338,0.75748666,82605.0,82604.0,0.07094]
[1743364737527,0.75748666,82605.0,82604.0,0.0701]
[1743364740244,0.1211099,82601.0,82600.0,0.1]
[1743364740439,0.1217499,82601.0,82600.0,0.1]
[1743364741030,0.24281454,82601.0,82600.0,0.1]
[1743364741345,0.24381454,82601.0,82600.0,0.103]
[1743364741547,0.27701454,82601.0,82600.0,0.103]
[1743364742044,0.28889084,82601.0,82600.0,0.103]
[1743364742645,0.28989084,82601.0,82600.0,0.104]
[1743364745833,0.28989084,82601.0,82600.0,0.1359]
[1743364747548,0.32039084,82601.0,82600.0,0.1359]
[1743364751136,0.50113152,82601.0,82600.0,0.1359]
[1743364753552,0.62141152,82601.0,82600.0,0.1359]
[1743364754253,0.44067084,82601.0,82600.0,0.1359]
[1743364766152,0.44063084,82601.0,82600.0,0.1359]
[1743364777562,0.6567976,82601.0,82600.0,0.1359]
[1743364784172,0.5365576,82601.0,82600.0,0.1359]
[1743364784372,0.6567576,82601.0,82600.0,0.1359]
[1743364789884,0.5365576,82601.0,82600.0,0.1359]
[1743364790074,0.6567576,82601.0,82600.0,0.1359]
[1743364803588,0.6567576,82601.0,82600.0,0.104]
[1743364805395,0.44059084,82601.0,82600.0,0.104]
[1743364805699,0.44051084,82601.0,82600.0,0.104]
[1743364808802,0.80131084,82601.0,82600.0,0.104]
[1743364810300,0.44051084,82601.0,82600.0,0.104]
[1743364810502,0.80131084,82601.0,82600.0,0.104]
[1743364814106,0.1211187,82595.0,82594.0,0.0664]
[1743364814298,0.1219587,82595.0,82594.0,0.06724]
[1743364814704,0.24302334,82595.0,82594.0,0.06724]
[1743364814906,0.30622334,82595.0,82594.0,0.06724]
[1743364815303,0.42634334,82595.0,82594.0,0.06724]
[1743364816002,0.42734334,82595.0,82594.0,0.06724]
[1743364816600,0.42834334,82595.0,82594.0,0.06724]
[1743364817801,0.43720863,82595.0,82594.0,0.06724]
[1743364821803,0.43720863,82595.0,82594.0,0.0664]
[1743364822113,0.43720863,82595.0,82594.0,0.06724]
[1743364823711,0.43716863,82595.0,82594.0,0.06724]
[1743364824102,1.43716863,82595.0,82594.0,0.06724]
[1743364830021,0.1211289,82588.0,82586.0,0.29065746]
[1743364830223,0.1218889,82588.0,82587.0,0.00124433]
[1743364830718,0.24296233,82588.0,82587.0,0.00124433]
[1743364830917,0.31715742,82588.0,82587.0,0.00124433]
[1743364831518,0.31815742,82588.0,82587.0,0.00124433]
[1743364832118,0.31915742,82588.0,82587.0,0.00124433]
[1743364833419,0.31915742,82588.0,82587.0,0.00048433]
[1743364835929,0.43919742,82588.0,82587.0,0.00112433]
[1743364836620,0.42740233,82588.0,82587.0,0.00112433]
[1743364838726,1.42740233,82588.0,82587.0,0.00112433]
[1743364839232,1.30736233,82588.0,82587.0,0.00112433]
[1743364839428,1.1238889,82588.0,82587.0,0.12225473]
[1743364839624,1.00276,82588.0,82587.0,0.27161473]
[1743364839927,1.00276,82588.0,82587.0,0.33659473]
[1743364841829,1.00276,82588.0,82587.0,0.69739473]
[1743364842023,1.00276,82588.0,82587.0,0.54739473]
[1743364843231,1.00276,82588.0,82587.0,0.90819473]
[1743364844423,1.1238889,82588.0,82587.0,0.90819473]
[1743364845233,1.1238889,82588.0,82587.0,1.27151656]
[1743364847937,1.1238889,82588.0,82587.0,0.90819473]
[1743364848847,0.94214659,82588.0,82587.0,0.90819473]
[1743364849138,0.94302659,82588.0,82587.0,0.90819473]
[1743364851231,0.94302659,82588.0,82587.0,0.78706433]
[1743364851538,0.97382659,82588.0,82587.0,0.39436433]
[1743364851837,0.97382659,82588.0,82587.0,0.36196433]
[1743364852239,0.97382659,82588.0,82587.0,0.48309473]
[1743364852536,0.97382659,82588.0,82587.0,0.51329473]
[1743364853729,0.97382659,82588.0,82587.0,0.54469473]
[1743364854128,0.94302659,82588.0,82587.0,0.54469473]
[1743364857441,0.97382659,82588.0,82587.0,0.54469473]
[1743364859444,0.97382659,82588.0,82587.0,0.51329473]
[1743364860539,0.97382659,82588.0,82587.0,0.54619473]
[1743364861242,0.94302659,82588.0,82587.0,0.54619473]
[1743364861434,0.82189769,82588.0,82587.0,0.54619473]
[1743364864650,0.85469769,82588.0,82587.0,0.54619473]
[1743364866044,0.85469769,82588.0,82587.0,0.90699473]
[1743364870142,0.85469769,82588.0,82587.0,1.27031656]
[1743364873346,0.85469769,82588.0,82587.0,1.23741656]
[1743364873544,0.85469769,82588.0,82587.0,1.35733656]
[1743364874048,0.88739769,82588.0,82587.0,1.35733656]
[1743364874347,0.88739769,82588.0,82587.0,0.63573656]
[1743364874648,0.88739769,82588.0,82587.0,1.42249028]
[1743364875038,0.88739769,82588.0,82587.0,1.45289028]
[1743364885847,0.88739769,82588.0,82587.0,1.42249028]
[1743364886946,0.88739769,82588.0,82587.0,1.45309028]
[1743364888757,0.88739769,82588.0,82587.0,0.73149028]
[1743364889054,0.88739769,82588.0,82587.0,1.45309028]
[1743364889452,0.88739769,82588.0,82587.0,1.39229028]
[1743364889641,1.00852659,82588.0,82587.0,1.39229028]
[1743364889844,1.00852659,82588.0,82587.0,1.15123988]
[1743364890250,1.00852659,82588.0,82587.0,1.27237028]
[1743364893260,1.00852659,82588.0,82587.0,0.84389473]
[1743364901569,1.00852659,82588.0,82587.0,0.12229473]
[1743364901867,1.00852659,82588.0,82587.0,0.84389473]
[1743364907964,1.00852659,82588.0,82587.0,0.12229473]
[1743364908167,1.00852659,82588.0,82587.0,0.84389473]
[1743364910963,1.00852659,82588.0,82587.0,0.72276433]
[1743364911562,1.00852659,82588.0,82587.0,0.36196433]
[1743364915675,1.00852659,82588.0,82587.0,0.3738465]
[1743364918266,1.02066394,82588.0,82587.0,0.36196433]
[1743364920075,0.1211407,82580.0,82579.0,0.29049135]
[1743364920281,0.1218607,82580.0,82579.0,0.29113135]
[1743364920474,0.1218607,82580.0,82579.0,0.30327378]
[1743364920875,0.1218607,82580.0,82579.0,0.29113135]
[1743364921579,0.1228607,82580.0,82579.0,0.29213135]
[1743364922171,0.1238607,82580.0,82579.0,0.29213135]
[1743364922772,0.1238607,82580.0,82579.0,0.30423145]
[1743364923074,0.1238607,82580.0,82579.0,0.0137401]
[1743364923273,0.1238607,82580.0,82579.0,0.00164]
[1743364926174,0.1238607,82580.0,82579.0,0.001]
[1743364927186,0.0605742,82575.0,82571.0,0.65177578]
[1743364927384,0.0605742,82575.0,82571.0,0.65241578]
[1743364927683,0.1211524,82572.0,82571.0,0.65241578]
[1743364927881,0.1218724,82572.0,82571.0,0.65241578]
[1743364928481,0.1218724,82572.0,82571.0,0.65341578]
[1743364928985,0.1218724,82572.0,82571.0,0.36292443]
[1743364930087,0.1228724,82572.0,82571.0,0.36292443]
[1743364930587,0.1228724,82572.0,82571.0,0.48407833]
[1743364930772,0.1228724,82572.0,82571.0,0.48307833]
[1743364930976,0.1238724,82572.0,82571.0,0.48307833]
[1743364931387,0.1238724,82572.0,82571.0,0.12227833]
[1743364933582,0.00272,82572.0,82571.0,0.12227833]
[1743364934089,0.00272,82572.0,82571.0,0.21777833]
[1743364934482,0.03352,82572.0,82571.0,0.21777833]
[1743364936192,0.0328,82572.0,82571.0,0.21777833]
[1743364936490,0.1539524,82572.0,82571.0,0.21777833]
[1743364937280,0.1545924,82572.0,82571.0,0.21777833]
[1743364937674,0.97561009,82572.0,82571.0,0.21777833]
[1743364938887,0.85445769,82572.0,82571.0,0.21777833]
[1743364940884,0.85345769,82572.0,82571.0,0.21777833]
[1743364941086,0.85445769,82572.0,82571.0,0.21777833]
[1743364942685,0.82365769,82572.0,82571.0,0.21777833]
[1743364944393,0.00018155,82581.0,82580.0,0.1211407]
[1743364944586,0.00018155,82581.0,82580.0,0.61807279]
[1743364944997,0.0636,82589.0,82588.0,0.1211289]
[1743364945183,0.0636,82589.0,82588.0,0.13746099]
[1743364945591,0.0636,82589.0,82588.0,0.20066099]
[1743364946798,0.0646,82589.0,82588.0,0.21271513]
[1743364947296,0.0646,82589.0,82588.0,0.19722304]
[1743364947501,0.0656,82589.0,82588.0,0.19822304]
[1743364948197,0.0656,82589.0,82588.0,0.55902304]
[1743364948401,0.0656,82589.0,82588.0,0.57450411]
[1743364949798,0.0656,82589.0,82588.0,0.51130411]
[1743364951003,0.0664,82589.0,82588.0,0.51130411]
[1743364951403,0.1875275,82589.0,82588.0,0.51130411]
[1743364951906,0.1875275,82589.0,82588.0,0.51132606]
[1743364953408,0.1875275,82589.0,82588.0,0.49582304]
[1743364954503,0.1875275,82589.0,82588.0,0.13502304]
[1743364955297,0.1875275,82589.0,82588.0,0.01389414]
[1743364955495,0.66940973,82589.0,82588.0,0.00184]
[1743364955697,0.66940973,82589.0,82588.0,0.21929287]
[1743364957504,0.68138797,82589.0,82588.0,0.21929287]
[1743364957704,0.68138797,82589.0,82588.0,0.21845287]
[1743364957905,0.68138797,82589.0,82588.0,0.21925287]
[1743364959106,0.68138797,82589.0,82588.0,0.0018]
[1743364959303,0.68138797,82589.0,82588.0,0.001]
[1743364966014,0.1211392,82581.0,82580.0,0.00018155]
[1743364966206,0.1219392,82581.0,82580.0,0.00098155]
[1743364966613,0.27562143,82581.0,82580.0,0.00098155]
[1743364966805,0.30832143,82581.0,82580.0,0.00098155]
[1743364967413,0.31032143,82581.0,82580.0,0.00198155]
[1743364969508,0.31032143,82581.0,82580.0,0.00098155]
[1743364970611,0.31032143,82581.0,82580.0,0.00018155]
[1743364971018,0.1211436,82578.0,82577.0,0.21745287]
[1743364971209,0.1219836,82578.0,82577.0,0.21829287]
[1743364971714,0.25508536,82578.0,82577.0,0.21829287]
[1743364971918,0.28638536,82578.0,82577.0,0.00084]
[1743364972218,0.1211495,82574.0,82573.0,0.21745287]
[1743364972405,0.1219495,82574.0,82573.0,0.21825287]
[1743364972802,0.24304786,82574.0,82573.0,0.21825287]
[1743364973016,0.33924786,82574.0,82573.0,0.21825287]
[1743364973414,0.34124786,82574.0,82573.0,0.21825287]
[1743364974921,0.34124786,82574.0,82573.0,0.0008]
[1743364975219,0.1211524,82572.0,82571.0,0.00048443]
[1743364975513,0.1220324,82572.0,82571.0,0.00136443]
[1743364975911,0.24313662,82572.0,82571.0,0.00136443]
[1743364976517,0.24513662,82572.0,82571.0,0.00136443]
[1743364978321,0.24513662,82572.0,82571.0,0.00048443]
[1743364978517,0.30863662,82572.0,82571.0,0.00048443]
[1743364982324,0.30763662,82572.0,82571.0,0.00048443]
[1743364982724,0.30863662,82572.0,82571.0,0.00048443]
[1743364983123,0.27333662,82572.0,82571.0,0.00048443]
[1743364983316,0.1220324,82572.0,82571.0,0.00048443]
[1743364983617,0.1526324,82572.0,82571.0,0.00048443]
[1743364983827,0.1526324,82572.0,82571.0,0.0769201]
[1743364984028,0.1526324,82572.0,82571.0,0.06478443]
[1743364987430,0.1526324,82572.0,82571.0,0.07671445]
[1743364987824,0.1220324,82572.0,82571.0,0.07671445]
[1743364989230,0.1220324,82572.0,82571.0,0.19786835]
[1743364992333,0.1220324,82572.0,82571.0,0.07671445]
[1743364992730,0.24313956,82572.0,82571.0,0.00128443]
[1743364992933,0.24313956,82572.0,82561.0,0.0311]
[1743364992934,0.1211583,82568.0,82561.0,0.0311]
[1743364993228,0.4819671,82562.0,82561.0,0.03174]
[1743364993429,0.4826871,82562.0,82561.0,0.00064]
[1743364994030,0.5456871,82562.0,82561.0,0.00064]
[1743364994237,0.66680452,82562.0,82561.0,0.00064]
[1743364998635,0.1211744,82557.0,82556.0,0.0638]
[1743364998825,0.1218944,82557.0,82556.0,0.06448]
[1743364999234,0.24301623,82557.0,82556.0,0.09638]
[1743364999431,0.30601623,82557.0,82556.0,0.09638]
[1743364999630,0.30601623,82557.0,82556.0,0.2175559]
[1743365000138,0.1848944,82557.0,82556.0,0.2175559]
[1743365000332,0.1218944,82557.0,82556.0,0.2175559]
[1743365001040,0.00072,82557.0,82556.0,0.2175559]
[1743365001238,0.1218944,82557.0,82556.0,0.2175559]
[1743365002836,0.1218944,82557.0,82556.0,0.5783559]
[1743365004835,0.1218944,82557.0,82556.0,0.09638]
[1743365005531,0.1533944,82557.0,82556.0,0.09638]
[1743365006243,0.1533944,82557.0,82556.0,0.2175559]
[1743365010643,0.1533944,82557.0,82556.0,0.00068]
[1743365010845,0.1845944,82557.0,82556.0,0.00068]
[1743365011646,0.1845944,82557.0,82556.0,0.1218559]
[1743365012447,0.1533944,82557.0,82556.0,0.1218559]
[1743365012646,0.1533944,82557.0,82556.0,0.1871559]
[1743365013251,0.1533944,82557.0,82556.0,0.1538559]
[1743365014850,0.1533944,82557.0,82556.0,0.1218559]
[1743365015548,0.1864944,82557.0,82556.0,0.1218559]
[1743365020455,0.31982111,82557.0,82556.0,0.00068]
[1743365020656,0.1211759,82556.0,82555.0,0.00048452]
[1743365020851,0.1218959,82556.0,82555.0,0.00116452]
[1743365021153,0.1852959,82556.0,82555.0,0.00116452]
[1743365023746,0.1852959,82556.0,82555.0,0.00048452]
[1743365027050,0.30642653,82556.0,82555.0,0.00048452]
[1743365027356,0.1211994,82540.0,82539.0,0.36374499]
[1743365027551,0.1212111,82532.0,82531.0,0.43591244]
[1743365027749,0.1218911,82532.0,82531.0,0.43655244]
[1743365028051,0.24302173,82532.0,82531.0,0.43655244]
[1743365028650,0.24402173,82532.0,82531.0,0.43655244]
[1743365029360,0.24302173,82532.0,82531.0,0.43655244]
[1743365029545,0.27352173,82532.0,82531.0,0.43655244]
[1743365030257,0.27452173,82532.0,82531.0,0.43655244]
[1743365032055,0.27452173,82532.0,82531.0,0.00064]
[1743365032362,0.27452173,82532.0,82524.0,0.032]
[1743365032363,0.1212214,82525.0,82524.0,0.032]
[1743365032560,0.1219414,82525.0,82524.0,0.06508]
[1743365032861,0.1219414,82525.0,82524.0,0.1848]
[1743365032862,0.00072,82525.0,82524.0,0.1848]
[1743365033060,0.1212178,82528.0,82527.0,0.1212185]
[1743365033260,0.1218978,82528.0,82527.0,0.1219385]
[1743365034260,0.00068,82528.0,82527.0,0.1219385]
[1743365034566,0.17787345,82533.0,82527.0,0.1219385]
[1743365034567,0.121217,82531.0,82530.0,0.1818175]
[1743365034773,0.121897,82531.0,82530.0,0.5432575]
[1743365035152,0.121897,82531.0,82530.0,0.4869464]
[1743365036661,0.122897,82531.0,82530.0,0.4869464]
[1743365038967,0.153597,82531.0,82530.0,0.42634]
[1743365039568,0.183897,82531.0,82530.0,0.42634]
[1743365041054,0.18142017,82531.0,82530.0,0.42634]
[1743365043270,0.18142017,82531.0,82530.0,0.5475541]
[1743365047071,0.18142017,82531.0,82530.0,0.1867541]
[1743365048564,0.18142017,82531.0,82530.0,0.3064341]
[1743365051180,0.18142017,82531.0,82530.0,0.18522]
[1743365051578,0.18142017,82531.0,82530.0,0.06554]
[1743365052074,0.18142017,82531.0,82530.0,0.15242]
[1743365052779,0.18142017,82531.0,82530.0,0.18402]
[1743365053481,0.18142017,82531.0,82530.0,0.03274]
[1743365054383,0.18142017,82531.0,82530.0,0.1539541]
[1743365055084,0.18142017,82531.0,82530.0,0.03274]
[1743365055585,0.18142017,82531.0,82530.0,0.1539541]
[1743365057878,0.18142017,82531.0,82530.0,0.1218541]
[1743365060890,0.18042017,82531.0,82530.0,0.1218541]
[1743365062384,0.18042017,82531.0,82530.0,0.1858541]
[1743365062385,0.06168,82531.0,82530.0,0.1858541]
[1743365062585,0.1828926,82531.0,82530.0,0.1858541]
[1743365062979,0.06168,82531.0,82530.0,0.1858541]
[1743365063485,0.1828926,82531.0,82530.0,0.1858541]
[1743365064288,0.1828926,82531.0,82530.0,0.5466541]
[1743365065279,0.1828926,82531.0,82530.0,0.1858541]
[1743365065480,0.1828926,82531.0,82530.0,0.5466541]
[1743365076991,0.1828926,82531.0,82530.0,0.1858541]
[1743365080898,0.1828926,82531.0,82530.0,0.1218541]
[1743365083796,0.1828926,82531.0,82530.0,0.00064]
[1743365085802,0.5557967,82531.0,82530.0,0.00064]
[1743365086001,0.1212229,82524.0,82523.0,0.00048471]
[1743365086200,0.4829429,82524.0,82523.0,0.00112471]
[1743365086890,0.5455429,82524.0,82523.0,0.00112471]
[1743365087096,0.5455429,82524.0,82515.0,0.36347227]
[1743365087097,0.0606157,82519.0,82515.0,0.36347227]
[1743365087295,0.1212405,82512.0,82507.0,0.43639724]
[1743365087500,0.1212464,82508.0,82507.0,0.43707724]
[1743365087697,0.12212641,82508.0,82507.0,0.43707724]
[1743365088406,0.18472641,82508.0,82507.0,0.44944383]
[1743365089904,0.18572641,82508.0,82507.0,0.44944383]
[1743365090107,0.18672641,82508.0,82507.0,0.44944383]
[1743365091310,0.18672641,82508.0,82507.0,0.01353139]
[1743365091498,0.19570799,82508.0,82507.0,0.01353139]
[1743365092105,0.19570799,82508.0,82507.0,0.13477929]
[1743365094309,0.19570799,82508.0,82507.0,0.01353139]
[1743365095299,0.19570799,82508.0,82507.0,0.01285139]
[1743365095505,0.19570799,82508.0,82507.0,0.01349139]
[1743365096906,0.19570799,82508.0,82507.0,0.0011248]
[1743365096907,0.55650799,82508.0,82507.0,0.0011248]
[1743365097110,0.55650799,82508.0,82507.0,0.0004848]
[1743365097702,0.1212567,82501.0,82500.0,0.1]
[1743365097898,0.48293671,82501.0,82500.0,0.10064]
[1743365098102,0.48293671,82501.0,82500.0,0.1]
[1743365098302,0.48293671,82501.0,82500.0,0.10064]
[1743365098508,0.58013671,82501.0,82500.0,0.10064]
[1743365098808,0.58013671,82501.0,82500.0,0.1]
[1743365099011,0.1212596,82499.0,82498.0,0.0121949]
[1743365099306,0.1212699,82492.0,82491.0,0.29103531]
[1743365099507,0.12214991,82492.0,82491.0,0.29167531]
[1743365099703,0.24336129,82492.0,82491.0,0.29167531]
[1743365099905,0.30886129,82492.0,82491.0,0.29167531]
[1743365100106,0.30886129,82492.0,82491.0,0.0011249]
[1743365101105,0.30886129,82492.0,82491.0,0.0004849]
[1743365102115,0.30986129,82492.0,82491.0,0.0004849]
[1743365102705,0.31086129,82492.0,82491.0,0.0004849]
[1743365103817,0.32326632,82492.0,82491.0,0.0004849]
[1743365104825,0.121289,82479.0,82478.0,0.4820895]
[1743365105006,0.12224901,82479.0,82478.0,0.4827295]
[1743365105214,0.12224901,82479.0,82478.0,0.36144]
[1743365106018,0.12324901,82479.0,82478.0,0.36144]
[1743365106317,0.12424901,82479.0,82478.0,0.1219305]
[1743365107913,0.12424901,82479.0,82478.0,0.00064]
[1743365108213,0.1212934,82476.0,82475.0,0.00048499]
[1743365108418,0.48297341,82476.0,82475.0,0.00112499]
[1743365108710,0.48297341,82476.0,82475.0,0.00048499]
[1743365109109,0.48297341,82476.0,82475.0,0.00112499]
[1743365109320,0.60422153,82476.0,82475.0,0.00048499]
[1743365109615,0.48297341,82476.0,82475.0,0.12177989]
[1743365109814,0.12217341,82476.0,82475.0,0.12241989]
[1743365110214,0.12217341,82476.0,82475.0,0.18451989]
[1743365110812,0.12217341,82476.0,82475.0,0.06322499]
[1743365111016,0.12217341,82476.0,82475.0,0.03122499]
[1743365111612,0.12217341,82476.0,82475.0,0.00112499]
[1743365112417,0.48297341,82476.0,82475.0,0.00048499]
[1743365113416,0.12217341,82476.0,82475.0,0.00048499]
[1743365113925,0.12217341,82476.0,82475.0,0.00112499]
[1743365114109,0.12217341,82476.0,82475.0,0.00048499]
[1743365115218,0.24342153,82476.0,82475.0,0.00048499]
[1743365115417,0.24342153,82476.0,82475.0,0.00112499]
[1743365117916,0.24342153,82476.0,82475.0,0.00048499]
[1743365118826,0.24342153,82476.0,82475.0,0.00112499]
[1743365119018,0.24342153,82476.0,82475.0,0.00048499]
[1743365121815,0.1213008,82471.0,82470.0,0.0307]
[1743365122025,0.12218081,82471.0,82470.0,0.0307]
[1743365122525,0.12218081,82471.0,82470.0,0.03134]
[1743365122725,0.0606564,82463.0,82459.0,0.00048509]
[1743365122925,0.121317,82460.0,82459.0,0.15442349]
[1743365123121,0.12243701,82460.0,82459.0,0.15442349]
[1743365123315,0.12243701,82460.0,82459.0,0.03310509]
[1743365124027,0.12243701,82460.0,82459.0,0.0484737]
[1743365124228,0.12243701,82460.0,82459.0,0.0784737]
[1743365125122,0.12243701,82460.0,82459.0,0.06238509]
[1743365126027,0.13216519,82460.0,82459.0,0.06238509]
[1743365127319,0.13216519,82460.0,82459.0,0.03238509]
[1743365127520,0.14182742,82460.0,82459.0,0.03238509]
[1743365128328,0.14282742,82460.0,82459.0,0.03238509]
[1743365128829,0.1520224,82460.0,82459.0,0.00048509]
[1743365129016,0.1520224,82460.0,82459.0,0.00112509]
[1743365129424,0.1520224,82460.0,82459.0,0.00048509]
[1743365129730,0.1510224,82460.0,82459.0,0.00048509]
[1743365130028,0.1520224,82460.0,82459.0,0.00048509]
[1743365130833,0.15189102,82460.0,82459.0,0.00048509]
[1743365133824,0.15188018,82460.0,82459.0,0.00048509]
[1743365134731,0.0606612,82448.0,82444.0,0.0331]
[1743365134921,0.1213269,82445.0,82444.0,0.00064]
[1743365135232,0.13203957,82445.0,82444.0,0.00064]
[1743365135429,0.13203957,82445.0,82444.0,0.1219684]
[1743365135834,0.14176775,82445.0,82444.0,0.00064]
[1743365136128,0.50256775,82445.0,82444.0,0.00064]
[1743365136519,0.1213284,82444.0,82438.0,0.21688639]
[1743365136719,0.1877884,82444.0,82443.0,0.00176518]
[1743365136928,0.19751658,82444.0,82443.0,0.00176518]
[1743365137133,0.33387445,82444.0,82443.0,0.00176518]
[1743365138435,0.33387445,82444.0,82443.0,0.00048518]
[1743365138625,0.3435424,82444.0,82443.0,0.00048518]
[1743365139330,0.121346,82432.0,82431.0,0.0619]
[1743365139527,0.13229395,82432.0,82431.0,0.06254]
[1743365139731,0.13229395,82432.0,82431.0,0.1838875]
[1743365140031,0.14202213,82432.0,82431.0,0.06254]
[1743365140227,0.20612213,82432.0,82431.0,0.06254]
[1743365140627,0.20612213,82432.0,82431.0,0.1838875]
[1743365140834,0.20612213,82432.0,82431.0,0.06254]
[1743365141729,0.19645418,82432.0,82431.0,0.06254]
[1743365148441,0.19645418,82432.0,82431.0,0.42334]
[1743365149140,0.19645418,82432.0,82431.0,0.36144]
[1743365153238,0.186726,82432.0,82431.0,0.36144]
[1743365162751,0.154026,82432.0,82431.0,0.36144]
[1743365165050,0.154026,82432.0,82431.0,0.36244]
[1743365165558,0.154026,82432.0,82431.0,0.36444]
[1743365166153,0.154026,82432.0,82431.0,0.36344]
[1743365166860,0.154026,82432.0,82431.0,0.39564]
[1743365167060,0.154026,82432.0,82431.0,0.39664]
[1743365167255,0.154026,82432.0,82431.0,0.39764]
[1743365167858,0.154026,82432.0,82431.0,0.5189875]
[1743365168358,0.154026,82432.0,82431.0,0.5169875]
[1743365168655,0.154026,82432.0,82431.0,0.39764]
[1743365169264,0.154026,82432.0,82431.0,0.42664]
[1743365169958,0.154026,82432.0,82431.0,0.5469875]
[1743365170154,0.154026,82432.0,82431.0,0.5479875]
[1743365172063,0.154026,82432.0,82431.0,0.5469875]
[1743365172262,0.154026,82432.0,82431.0,0.5479875]
[1743365172849,0.154026,82432.0,82431.0,0.5469875]
[1743365173051,0.154026,82432.0,82431.0,0.1871875]
[1743365173261,0.154026,82432.0,82431.0,0.5479875]
[1743365173848,0.154026,82432.0,82431.0,0.5469875]
[1743365174057,0.154026,82432.0,82431.0,0.5479875]
[1743365174859,0.154026,82432.0,82431.0,0.5469875]
[1743365175063,0.154026,82432.0,82431.0,0.5479875]
[1743365177467,0.185826,82432.0,82431.0,0.5479875]
[1743365178659,0.185826,82432.0,82431.0,0.1871875]
[1743365178967,0.185826,82432.0,82431.0,0.5479875]
[1743365183369,0.185826,82432.0,82431.0,0.1861875]
[1743365183567,0.185826,82432.0,82431.0,0.5469875]
[1743365184066,0.185826,82432.0,82431.0,0.5459875]
[1743365184269,0.185826,82432.0,82431.0,0.5469875]
[1743365188672,0.185826,82432.0,82431.0,0.76387389]
[1743365188873,0.185866,82432.0,82431.0,0.76387389]
[1743365192677,0.185866,82432.0,82431.0,0.76587389]
[1743365192978,0.185866,82432.0,82431.0,0.73787389]
[1743365193676,0.185866,82432.0,82431.0,0.5209875]
[1743365194888,0.185866,82432.0,82431.0,0.5199875]
[1743365195979,0.185866,82432.0,82431.0,0.5189875]
[1743365197173,0.185866,82432.0,82431.0,0.5179875]
[1743365198084,0.185866,82432.0,82431.0,0.1571875]
[1743365198278,0.185866,82432.0,82431.0,0.5179875]
[1743365199586,0.185866,82432.0,82431.0,0.36344]
[1743365200078,0.20042514,82432.0,82431.0,0.36344]
[1743365200886,0.20042514,82432.0,82431.0,0.4847875]
[1743365201682,0.20042514,82432.0,82431.0,0.4837875]
[1743365201988,0.20042514,82432.0,82431.0,0.4847875]
[1743365202685,0.20042514,82432.0,82431.0,0.36244]
[1743365202890,0.20042514,82432.0,82431.0,0.4837875]
[1743365203581,0.20042514,82432.0,82431.0,0.1229875]
[1743365204181,0.20042514,82432.0,82431.0,0.00164]
[1743365205175,0.185866,82432.0,82431.0,0.1229875]
[1743365206689,0.185866,82432.0,82431.0,0.00164]
[1743365207580,0.20058032,82432.0,82431.0,0.00164]
[1743365213294,0.185866,82432.0,82431.0,0.00164]
[1743365213490,0.185866,82432.0,82431.0,0.1229875]
[1743365214687,0.185866,82432.0,82431.0,0.1860875]
[1743365215687,0.185826,82432.0,82431.0,0.1860875]
[1743365216088,0.00128,82432.0,82431.0,0.1860875]
[1743365216287,0.18107121,82434.0,82433.0,0.1213446]
[1743365216482,0.00128,82434.0,82433.0,0.1219846]
[1743365216682,0.25219456,82453.0,82451.0,0.1213181]
[1743365216982,0.0010619,82452.0,82451.0,0.6024781]
[1743365217585,0.0010619,82452.0,82451.0,0.6676781]
[1743365217787,0.0050619,82452.0,82451.0,0.6676781]
[1743365218285,0.0371619,82452.0,82451.0,0.6676781]
[1743365218891,0.0050619,82452.0,82451.0,0.6676781]
[1743365219394,0.0050619,82452.0,82451.0,0.68219221]
[1743365219595,0.0100619,82452.0,82451.0,0.68219221]
[1743365220495,0.10850351,82463.0,82462.0,0.1213019]
[1743365220690,0.10942351,82463.0,82462.0,0.4827419]
[1743365221291,0.10942351,82463.0,82462.0,0.5472419]
[1743365221681,0.10942351,82463.0,82462.0,0.5482419]
[1743365221682,0.11442351,82463.0,82462.0,0.5482419]
[1743365221883,0.11942351,82463.0,82462.0,0.5482419]
[1743365223799,0.01092,82463.0,82462.0,0.5482419]
[1743365223997,0.01,82463.0,82462.0,0.5482419]
[1743365226685,0.1313004,82463.0,82462.0,0.5482419]
[1743365226886,0.13218041,82463.0,82462.0,0.6684019]
[1743365227695,0.01088001,82463.0,82462.0,0.6684019]
[1743365227894,0.13218041,82463.0,82462.0,0.6684019]
[1743365228198,0.19528041,82463.0,82462.0,0.6684019]
[1743365229589,0.07398001,82463.0,82462.0,0.6684019]
[1743365229793,0.0731,82463.0,82462.0,0.6684019]
[1743365230989,0.0416,82463.0,82462.0,0.6684019]
[1743365231387,0.00018189,82471.0,82470.0,0.1212901]
[1743365231587,0.0324619,82471.0,82470.0,0.4827301]
[1743365231892,0.0324619,82471.0,82470.0,0.5139301]
[1743365232595,0.1537505,82471.0,82470.0,0.5139301]
[1743365232792,0.1537505,82471.0,82470.0,0.6349701]
[1743365233099,0.1587505,82471.0,82470.0,0.64972508]
[1743365233890,0.0374619,82471.0,82470.0,0.64972508]
[1743365234089,0.0394619,82471.0,82470.0,0.64972508]
[1743365235095,0.03858189,82471.0,82470.0,0.64972508]
[1743365235496,0.03858189,82471.0,82470.0,0.68062508]
[1743365236001,0.0394619,82471.0,82470.0,0.68062508]
[1743365237104,0.03858189,82471.0,82470.0,0.68062508]
[1743365239399,0.00718189,82471.0,82470.0,0.68062508]
[1743365239600,0.01418099,82493.0,82477.0,0.0606396]
[1743365239803,0.01418099,82493.0,82483.0,0.482071]
[1743365239804,0.00128001,82484.0,82483.0,0.482071]
[1743365239989,0.0004,82484.0,82483.0,0.602871]
[1743365240392,0.0004,82484.0,82483.0,0.667671]
[1743365240801,0.00128001,82484.0,82483.0,0.667671]
[1743365240998,0.00328001,82484.0,82483.0,0.667671]
[1743365241601,0.00528001,82484.0,82483.0,0.667671]
[1743365241903,0.00528001,82484.0,82483.0,0.6819363]
[1743365242708,0.03778001,82484.0,82483.0,0.6819363]
[1743365243406,0.0369,82484.0,82483.0,0.6819363]
[1743365244103,0.00018189,82492.0,82489.0,0.0606311]
[1743365244408,0.03268189,82492.0,82491.0,0.4820592]
[1743365244608,0.03268189,82492.0,82491.0,0.4826992]
[1743365244906,0.03268189,82492.0,82491.0,0.5444992]
[1743365245211,0.10850351,82502.0,82499.0,0.1818706]
[1743365245409,0.14467135,82506.0,82505.0,0.1212387]
[1743365245705,0.14567135,82506.0,82505.0,0.1219987]
[1743365245905,0.14467135,82506.0,82505.0,0.1219987]
[1743365246506,0.0329,82510.0,82509.0,0.1212328]
[1743365246712,0.0329,82510.0,82509.0,0.6027928]
[1743365246913,0.00018189,82514.0,82513.0,0.1212269]
[1743365247208,0.00018189,82514.0,82513.0,0.1219469]
[1743365247418,0.00018189,82514.0,82513.0,0.13568978]